bitfinex-derivatives/quotes_BTCF0:USTF0_20240825
["timestamp","ask_amount","ask_price","bid_price","bid_amount"]
[1724615674715,0.03505343,64231.0,64230.0,1.00691775]
[1724615675623,0.03505343,64231.0,64230.0,0.90691775]
[1724615679223,0.005,64231.0,64230.0,0.90691775]
[1724615679923,0.005,64231.0,64230.0,0.18531775]
[1724615680531,0.005,64231.0,64230.0,0.90691775]
[1724615681926,0.005,64231.0,64230.0,0.18531775]
[1724615682328,0.005,64231.0,64230.0,0.90691775]
[1724615683024,0.005,64231.0,64230.0,0.18531775]
[1724615683323,0.005,64231.0,64230.0,0.90691775]
[1724615684632,0.005,64231.0,64230.0,0.18531775]
[1724615685035,0.005,64231.0,64230.0,0.90691775]
[1724615686332,0.005,64231.0,64230.0,0.18531775]
[1724615687128,0.005,64231.0,64230.0,0.90691775]
[1724615687840,0.005,64231.0,64230.0,0.18531775]
[1724615688039,0.005,64231.0,64230.0,0.90691775]
[1724615688734,0.005,64231.0,64230.0,0.18531775]
[1724615688943,0.005,64231.0,64230.0,0.90691775]
[1724615689141,0.005,64231.0,64230.0,0.18531775]
[1724615689337,0.08271711,64231.0,64230.0,0.90691775]
[1724615691142,0.08271711,64231.0,64230.0,0.18531775]
[1724615691335,0.08271711,64231.0,64230.0,0.90691775]
[1724615691542,0.08271711,64231.0,64230.0,0.18531775]
[1724615691749,0.08271711,64231.0,64230.0,0.90691775]
[1724615692740,0.08271711,64231.0,64230.0,0.18531775]
[1724615693446,0.005,64231.0,64230.0,0.18531775]
[1724615693638,0.005,64231.0,64230.0,0.90691775]
[1724615694150,0.0350535,64231.0,64230.0,0.90691775]
[1724615694541,0.07315347,64231.0,64230.0,0.90691775]
[1724615694840,0.0350535,64231.0,64230.0,0.18531775]
[1724615695047,0.0350535,64231.0,64230.0,0.90691775]
[1724615695247,0.07315347,64231.0,64230.0,0.90691775]
[1724615697232,0.07315347,64231.0,64230.0,0.91691775]
[1724615697443,0.07315347,64231.0,64230.0,0.90691775]
[1724615702147,0.09841454,64231.0,64230.0,0.04665455]
[1724615702343,0.09881454,64231.0,64230.0,0.13665455]
[1724615703050,0.09881454,64231.0,64230.0,0.21446055]
[1724615706246,0.09881454,64231.0,64230.0,0.21486055]
[1724615707040,0.09881454,64231.0,64230.0,0.168206]
[1724615707353,0.0054,64231.0,64230.0,0.168206]
[1724615708349,0.09880896,64231.0,64230.0,0.168206]
[1724615709150,0.07355439,64231.0,64230.0,0.168206]
[1724615709950,0.03545391,64231.0,64230.0,0.168206]
[1724615710150,0.07355439,64231.0,64230.0,0.168206]
[1724615710355,0.03545391,64231.0,64230.0,0.168206]
[1724615710552,0.07355439,64231.0,64230.0,0.168206]
[1724615710857,0.03545391,64231.0,64230.0,0.168206]
[1724615711059,0.07355439,64231.0,64230.0,0.168206]
[1724615711359,0.07355439,64231.0,64230.0,0.168416]
[1724615711650,0.07355439,64231.0,64230.0,0.18580229]
[1724615711849,0.03545391,64231.0,64230.0,0.18580229]
[1724615712043,0.07355439,64231.0,64230.0,0.18580229]
[1724615712242,0.22922556,64231.0,64230.0,0.18580229]
[1724615712847,0.19112508,64231.0,64230.0,0.18580229]
[1724615713067,0.22922556,64231.0,64230.0,0.18580229]
[1724615713259,0.22922558,64231.0,64230.0,0.18580229]
[1724615714758,0.19112509,64231.0,64230.0,0.18580229]
[1724615714959,0.22922558,64231.0,64230.0,0.18580229]
[1724615715756,0.19112509,64231.0,64230.0,0.18580229]
[1724615715956,0.07355441,64231.0,64230.0,0.18580229]
[1724615717346,0.0054,64231.0,64230.0,0.18580229]
[1724615720152,0.0054,64231.0,64230.0,0.168416]
[1724615720455,0.0054,64231.0,64230.0,0.078416]
[1724615720657,0.0954,64231.0,64230.0,0.14066646]
[1724615720862,0.1732328,64231.0,64230.0,0.14066646]
[1724615721160,0.1732328,64231.0,64230.0,0.078416]
[1724615721952,0.2510368,64231.0,64230.0,0.078416]
[1724615722255,0.173204,64231.0,64230.0,0.078416]
[1724615723449,0.894804,64231.0,64230.0,0.078416]
[1724615723760,0.173204,64231.0,64230.0,0.078416]
[1724615724059,0.894804,64231.0,64230.0,0.078416]
[1724615724361,1.0107275,64231.0,64230.0,0.078416]
[1724615725757,0.077811,64226.0,64225.0,0.077811]
[1724615726061,0.10786821,64226.0,64225.0,0.077811]
[1724615727959,0.10786821,64226.0,64225.0,0.167811]
[1724615728155,0.10786874,64226.0,64225.0,0.167811]
[1724615729358,0.46866874,64226.0,64225.0,0.167811]
[1724615729665,0.14597408,64226.0,64225.0,0.167811]
[1724615729856,0.46866874,64226.0,64225.0,0.167811]
[1724615730059,0.50677408,64226.0,64225.0,0.167811]
[1724615730367,0.63119869,64226.0,64225.0,0.167811]
[1724615730863,0.50677408,64226.0,64225.0,0.167811]
[1724615731057,0.63119869,64226.0,64225.0,0.167811]
[1724615731267,0.50677408,64226.0,64225.0,0.167811]
[1724615731460,0.42896308,64226.0,64225.0,0.167811]
[1724615732462,0.3608,64226.0,64225.0,0.167811]
[1724615734668,0.077809,64227.0,64225.0,0.167811]
[1724615735061,0.3608,64226.0,64225.0,0.167811]
[1724615735765,0.077809,64227.0,64225.0,0.167811]
[1724615735967,0.3608,64226.0,64225.0,0.167811]
[1724615739371,0.42896221,64226.0,64225.0,0.167811]
[1724615739773,0.06816221,64226.0,64225.0,0.167811]
[1724615739969,0.03005736,64226.0,64225.0,0.167811]
[1724615740366,0.39085736,64226.0,64225.0,0.167811]
[1724615740570,0.42896221,64226.0,64225.0,0.167811]
[1724615742066,0.06816221,64226.0,64225.0,0.167811]
[1724615742276,0.39085736,64226.0,64225.0,0.167811]
[1724615742577,0.06816221,64226.0,64225.0,0.167811]
[1724615742765,0.39085736,64226.0,64225.0,0.167811]
[1724615742962,0.42896221,64226.0,64225.0,0.167811]
[1724615743164,0.42896278,64226.0,64225.0,0.167811]
[1724615743364,0.06816278,64226.0,64225.0,0.167811]
[1724615743571,0.39085761,64226.0,64225.0,0.167811]
[1724615743769,0.42896278,64226.0,64225.0,0.167811]
[1724615745570,0.06816278,64226.0,64225.0,0.167811]
[1724615745768,0.39085761,64226.0,64225.0,0.167811]
[1724615745972,0.42896278,64226.0,64225.0,0.167811]
[1724615746481,0.42896278,64226.0,64225.0,0.077811]
[1724615747173,0.06816278,64226.0,64225.0,0.077811]
[1724615747363,0.3608,64226.0,64225.0,0.077811]
[1724615748274,0.077809,64227.0,64226.0,0.07781]
[1724615748671,0.438609,64227.0,64226.0,0.07781]
[1724615748866,0.077809,64227.0,64226.0,0.07781]
[1724615749072,0.438609,64227.0,64226.0,0.07821]
[1724615749477,0.078809,64227.0,64226.0,0.07821]
[1724615749778,0.439609,64227.0,64226.0,0.07821]
[1724615751874,0.3618,64227.0,64226.0,0.07821]
[1724615753778,0.001,64227.0,64226.0,0.07821]
[1724615753975,0.001,64227.0,64226.0,0.15601839]
[1724615754180,0.3618,64227.0,64226.0,0.07821]
[1724615755873,0.001,64227.0,64226.0,0.07821]
[1724615756079,0.3618,64227.0,64226.0,0.07821]
[1724615757982,0.001,64227.0,64226.0,0.07821]
[1724615758182,0.3618,64227.0,64226.0,0.07821]
[1724615762279,0.42996262,64227.0,64226.0,0.07821]
[1724615762876,0.06916262,64227.0,64226.0,0.07821]
[1724615763080,0.42996262,64227.0,64226.0,0.07821]
[1724615763281,0.3618,64227.0,64226.0,0.07821]
[1724615763488,0.42996269,64227.0,64226.0,0.07821]
[1724615763786,0.06916269,64227.0,64226.0,0.07821]
[1724615763987,0.42996269,64227.0,64226.0,0.07821]
[1724615764186,0.42996269,64227.0,64226.0,0.17821]
[1724615764387,0.5700762,64227.0,64226.0,0.17821]
[1724615766292,0.5700719,64227.0,64226.0,0.17821]
[1724615766503,0.42996269,64227.0,64226.0,0.17821]
[1724615766694,0.42996245,64227.0,64226.0,0.17821]
[1724615767194,0.57007181,64227.0,64226.0,0.17821]
[1724615768400,0.20927111,64227.0,64226.0,0.17821]
[1724615768698,0.57007111,64227.0,64226.0,0.17821]
[1724615769200,0.20927111,64227.0,64226.0,0.17821]
[1724615769402,0.3618,64227.0,64226.0,0.17821]
[1724615770001,0.001,64227.0,64226.0,0.17821]
[1724615770386,0.3618,64227.0,64226.0,0.17821]
[1724615772901,0.001,64227.0,64226.0,0.17821]
[1724615773095,0.3618,64227.0,64226.0,0.17821]
[1724615776105,0.001,64227.0,64226.0,0.17821]
[1724615776306,0.3618,64227.0,64226.0,0.17821]
[1724615778798,0.001,64227.0,64226.0,0.17821]
[1724615778998,0.3618,64227.0,64226.0,0.17821]
[1724615780106,0.001,64227.0,64226.0,0.17821]
[1724615780407,0.3618,64227.0,64226.0,0.17821]
[1724615781200,0.3618,64227.0,64226.0,0.25601839]
[1724615781605,0.001,64227.0,64226.0,0.25601839]
[1724615782001,0.3618,64227.0,64226.0,0.25601839]
[1724615782200,0.001,64227.0,64226.0,0.25601839]
[1724615782397,0.3618,64227.0,64226.0,0.25601839]
[1724615782601,0.001,64227.0,64226.0,0.25601839]
[1724615783102,0.3618,64227.0,64226.0,0.25601839]
[1724615783299,0.001,64227.0,64226.0,0.25601839]
[1724615783500,0.3618,64227.0,64226.0,0.25601839]
[1724615783907,0.001,64227.0,64226.0,0.17821]
[1724615784414,0.50190936,64227.0,64226.0,0.17821]
[1724615784601,0.57007162,64227.0,64226.0,0.17821]
[1724615785215,0.57007101,64227.0,64226.0,0.17821]
[1724615786402,0.20927101,64227.0,64226.0,0.17821]
[1724615786700,0.53196647,64227.0,64226.0,0.17821]
[1724615786896,0.42996165,64227.0,64226.0,0.17821]
[1724615788504,0.57007029,64227.0,64226.0,0.17821]
[1724615789013,0.57007029,64227.0,64226.0,0.16821]
[1724615789501,0.42996219,64227.0,64226.0,0.16821]
[1724615790097,0.06916219,64227.0,64226.0,0.16821]
[1724615790310,0.42996219,64227.0,64226.0,0.16821]
[1724615792006,0.06916219,64227.0,64226.0,0.16821]
[1724615792201,0.53196545,64227.0,64226.0,0.16821]
[1724615792408,0.3618,64227.0,64226.0,0.16821]
[1724615794707,0.001,64227.0,64226.0,0.16821]
[1724615794908,0.001,64227.0,64226.0,0.24601839]
[1724615794909,0.3618,64227.0,64226.0,0.24601839]
[1724615795114,0.3618,64227.0,64226.0,0.16821]
[1724615795916,0.001,64227.0,64226.0,0.16821]
[1724615796207,0.3618,64227.0,64226.0,0.16821]
[1724615796411,0.3618,64227.0,64226.0,0.24601839]
[1724615796607,0.3618,64227.0,64226.0,0.3645982]
[1724615796806,0.001,64227.0,64226.0,0.3645982]
[1724615797112,0.3618,64227.0,64226.0,0.3645982]
[1724615797613,0.3618,64227.0,64226.0,0.24601839]
[1724615798205,0.3618,64227.0,64226.0,0.16821]
[1724615798406,0.3618,64227.0,64226.0,0.24601839]
[1724615798606,0.001,64227.0,64226.0,0.24601839]
[1724615798808,0.3618,64227.0,64226.0,0.24601839]
[1724615799314,0.3618,64227.0,64226.0,0.16821]
[1724615799616,0.06916222,64227.0,64226.0,0.16821]
[1724615799817,0.03105736,64227.0,64226.0,0.16821]
[1724615800309,0.39185736,64227.0,64226.0,0.16821]
[1724615800505,0.06916222,64227.0,64226.0,0.16821]
[1724615800702,0.03105736,64227.0,64226.0,0.16821]
[1724615800915,0.39185736,64227.0,64226.0,0.16821]
[1724615801108,0.06916222,64227.0,64226.0,0.16821]
[1724615801305,0.39185736,64227.0,64226.0,0.16821]
[1724615801509,0.42996222,64227.0,64226.0,0.16821]
[1724615802219,0.42996222,64227.0,64226.0,0.17821]
[1724615803109,0.06916222,64227.0,64226.0,0.17821]
[1724615803305,0.3618,64227.0,64226.0,0.17821]
[1724615803519,0.42996222,64227.0,64226.0,0.16821]
[1724615803906,0.39185736,64227.0,64226.0,0.16821]
[1724615804912,0.03105736,64227.0,64226.0,0.16821]
[1724615805415,0.39185736,64227.0,64226.0,0.16821]
[1724615806112,0.03105736,64227.0,64226.0,0.16821]
[1724615806311,0.39185736,64227.0,64226.0,0.16821]
[1724615807010,0.03105736,64227.0,64226.0,0.16821]
[1724615807408,0.3618,64227.0,64226.0,0.16821]
[1724615807612,0.001,64227.0,64226.0,0.16821]
[1724615807916,0.3618,64227.0,64226.0,0.07821]
[1724615808420,0.001,64227.0,64226.0,0.07821]
[1724615808615,0.3618,64227.0,64226.0,0.07821]
[1724615810115,0.001,64227.0,64226.0,0.07821]
[1724615810308,0.3618,64227.0,64226.0,0.07821]
[1724615810507,0.001,64227.0,64226.0,0.07821]
[1724615810721,0.3618,64227.0,64226.0,0.07821]
[1724615811222,0.001,64227.0,64226.0,0.07821]
[1724615811427,0.3618,64227.0,64226.0,0.07821]
[1724615811818,0.001,64227.0,64226.0,0.07821]
[1724615812115,0.3618,64227.0,64226.0,0.07821]
[1724615814424,0.42996247,64227.0,64226.0,0.07821]
[1724615814922,0.06916247,64227.0,64226.0,0.07821]
[1724615815118,0.03105747,64227.0,64226.0,0.07821]
[1724615815327,0.39185747,64227.0,64226.0,0.07821]
[1724615815522,0.42996247,64227.0,64226.0,0.07821]
[1724615815723,0.06916247,64227.0,64226.0,0.07821]
[1724615815923,0.39185747,64227.0,64226.0,0.07821]
[1724615816123,0.06916247,64227.0,64226.0,0.07821]
[1724615816324,0.39185747,64227.0,64226.0,0.07821]
[1724615816627,0.42996247,64227.0,64226.0,0.07821]
[1724615817025,0.55450576,64227.0,64226.0,0.07821]
[1724615817426,0.42996247,64227.0,64226.0,0.07821]
[1724615818329,0.42996274,64227.0,64226.0,0.07821]
[1724615819719,0.06916274,64227.0,64226.0,0.07821]
[1724615820232,0.42996274,64227.0,64226.0,0.07821]
[1724615820633,0.50777174,64227.0,64226.0,0.07821]
[1724615821627,0.50777174,64227.0,64218.0,0.09463367]
[1724615821628,0.50777174,64227.0,64218.0,0.00023367]
[1724615821824,0.4697932,64219.0,64218.0,0.00023367]
[1724615822021,0.4697932,64219.0,64218.0,0.16805367]
[1724615822022,0.42896341,64219.0,64218.0,0.16805367]
[1724615822222,0.42896341,64219.0,64218.0,0.17805367]
[1724615822525,0.3612,64219.0,64218.0,0.2966463]
[1724615823128,0.3612,64219.0,64218.0,0.37443543]
[1724615823731,0.0004,64219.0,64218.0,0.37443543]
[1724615823930,0.3612,64219.0,64218.0,0.40335885]
[1724615824225,0.3612,64219.0,64218.0,0.41035885]
[1724615824730,0.3612,64219.0,64218.0,0.41035872]
[1724615825026,0.3612,64219.0,64218.0,0.29076622]
[1724615825027,0.3622,64219.0,64218.0,0.29076622]
[1724615825227,0.3622,64219.0,64218.0,0.40935849]
[1724615826533,0.3622,64219.0,64218.0,0.40735849]
[1724615826834,0.3622,64219.0,64218.0,0.40735777]
[1724615827029,0.0014,64219.0,64218.0,0.40735777]
[1724615827226,0.3622,64219.0,64218.0,0.40735777]
[1724615828226,0.0014,64219.0,64218.0,0.40735765]
[1724615828433,0.3622,64219.0,64218.0,0.40735765]
[1724615829124,0.32326648,64219.0,64218.0,0.32956852]
[1724615829531,0.32326648,64219.0,64218.0,0.21097709]
[1724615830425,0.18677138,64225.0,64221.0,0.077816]
[1724615830619,0.03005901,64224.0,64222.0,0.09]
[1724615830821,0.03005901,64223.0,64222.0,0.09]
[1724615832329,0.39085901,64223.0,64222.0,0.09]
[1724615832926,0.03005901,64223.0,64222.0,0.09]
[1724615833123,0.39085901,64223.0,64222.0,0.09]
[1724615833322,0.39085901,64223.0,64222.0,0.092]
[1724615833527,0.03005901,64223.0,64222.0,0.095]
[1724615833834,0.39085901,64223.0,64222.0,0.095]
[1724615834424,0.39085901,64223.0,64222.0,0.172815]
[1724615835026,0.39085901,64223.0,64222.0,0.182815]
[1724615835933,0.03005901,64223.0,64222.0,0.182815]
[1724615836124,0.03005901,64223.0,64222.0,0.180815]
[1724615836323,0.39085901,64223.0,64222.0,0.182815]
[1724615837533,0.3608,64223.0,64222.0,0.182815]
[1724615838028,0.09958498,64225.0,64222.0,0.182815]
[1724615838233,0.3608,64223.0,64222.0,0.182815]
[1724615843433,0.3608,64223.0,64222.0,0.37914587]
[1724615844425,0.3608,64223.0,64222.0,0.182815]
[1724615846036,0.02168237,64227.0,64224.0,0.077812]
[1724615846237,0.3608,64225.0,64224.0,0.077812]
[1724615847437,0.3608,64225.0,64224.0,0.078812]
[1724615848934,0.3608,64225.0,64224.0,0.077812]
[1724615849135,0.3608,64225.0,64224.0,0.078812]
[1724615852639,0.42896328,64225.0,64224.0,0.078812]
[1724615855546,0.06816328,64225.0,64224.0,0.078812]
[1724615855845,0.39085783,64225.0,64224.0,0.078812]
[1724615856039,0.42896328,64225.0,64224.0,0.078812]
[1724615856947,0.56907138,64225.0,64224.0,0.078812]
[1724615857331,0.56907138,64225.0,64224.0,0.088812]
[1724615857647,0.42896328,64225.0,64224.0,0.088812]
[1724615857939,0.06816328,64225.0,64224.0,0.088812]
[1724615858145,0.03005783,64225.0,64224.0,0.088812]
[1724615858341,0.39085783,64225.0,64224.0,0.088812]
[1724615858646,0.06816328,64225.0,64224.0,0.088812]
[1724615858845,0.39085783,64225.0,64224.0,0.088812]
[1724615859143,0.42896328,64225.0,64224.0,0.088812]
[1724615859533,0.3608,64225.0,64224.0,0.088812]
[1724615859937,0.10043891,64228.0,64224.0,0.088812]
[1724615860142,0.3608,64225.0,64224.0,0.088812]
[1724615860444,0.10043891,64228.0,64224.0,0.088812]
[1724615860640,0.10043891,64228.0,64227.0,0.0622337]
[1724615861144,0.10043891,64228.0,64227.0,0.0626337]
[1724615861542,0.46123891,64228.0,64227.0,0.0626337]
[1724615861739,0.10043891,64228.0,64227.0,0.0626337]
[1724615862140,0.46123891,64228.0,64227.0,0.0626337]
[1724615862546,0.10243891,64228.0,64227.0,0.0626337]
[1724615862842,0.46323891,64228.0,64227.0,0.0626337]
[1724615863439,0.10243891,64228.0,64227.0,0.0626337]
[1724615863639,0.46323891,64228.0,64227.0,0.0626337]
[1724615863841,0.10243891,64228.0,64227.0,0.1404427]
[1724615864149,0.46323891,64228.0,64227.0,0.1404427]
[1724615864753,0.10243891,64228.0,64227.0,0.1404427]
[1724615865049,0.46323891,64228.0,64227.0,0.1404427]
[1724615866047,0.10243891,64228.0,64227.0,0.1404427]
[1724615866241,0.46323891,64228.0,64227.0,0.1404427]
[1724615866440,0.10243891,64228.0,64227.0,0.1404427]
[1724615866646,0.46323891,64228.0,64227.0,0.1404427]
[1724615867047,0.54106525,64228.0,64227.0,0.1404427]
[1724615867555,0.10243891,64228.0,64227.0,0.078209]
[1724615867755,0.46323891,64228.0,64227.0,0.078209]
[1724615868454,0.10243891,64228.0,64227.0,0.078209]
[1724615868656,0.46323891,64228.0,64227.0,0.078209]
[1724615869856,0.10243891,64228.0,64227.0,0.078209]
[1724615870051,0.46323891,64228.0,64227.0,0.078209]
[1724615870950,0.10243891,64228.0,64227.0,0.078209]
[1724615871252,0.46323891,64228.0,64227.0,0.078209]
[1724615871851,0.10243891,64228.0,64227.0,0.078209]
[1724615872055,0.46323891,64228.0,64227.0,0.078209]
[1724615873251,0.10243891,64228.0,64227.0,0.078209]
[1724615873553,0.46323891,64228.0,64227.0,0.078209]
[1724615874659,0.53140217,64228.0,64227.0,0.078209]
[1724615876151,0.60230001,64228.0,64227.0,0.078209]
[1724615877055,0.24150001,64228.0,64227.0,0.078209]
[1724615877356,0.60230001,64228.0,64227.0,0.078209]
[1724615878254,0.24150001,64228.0,64227.0,0.078209]
[1724615878461,0.60230001,64228.0,64227.0,0.078209]
[1724615878955,0.53140217,64228.0,64227.0,0.078209]
[1724615879157,0.17060217,64228.0,64227.0,0.078209]
[1724615879458,0.53140217,64228.0,64227.0,0.078209]
[1724615881268,0.17060217,64228.0,64227.0,0.078209]
[1724615881461,0.53140217,64228.0,64227.0,0.078209]
[1724615881875,0.17060217,64228.0,64227.0,0.078209]
[1724615882066,0.53140217,64228.0,64227.0,0.078209]
[1724615882552,0.46323891,64228.0,64227.0,0.078209]
[1724615882757,0.10243891,64228.0,64227.0,0.078209]
[1724615883158,0.46323891,64228.0,64227.0,0.078209]
[1724615884365,0.10243891,64228.0,64227.0,0.078209]
[1724615884670,0.46323891,64228.0,64227.0,0.078209]
[1724615884969,0.10243891,64228.0,64227.0,0.078209]
[1724615885358,0.46323891,64228.0,64227.0,0.078209]
[1724615886162,0.10243891,64228.0,64227.0,0.078209]
[1724615886466,0.46323891,64228.0,64227.0,0.078209]
[1724615889562,0.49329688,64228.0,64227.0,0.078209]
[1724615889767,0.60230004,64228.0,64227.0,0.078209]
[1724615890772,0.57224207,64228.0,64227.0,0.078209]
[1724615891070,0.60230009,64228.0,64227.0,0.078209]
[1724615891461,0.49329693,64228.0,64227.0,0.078209]
[1724615893462,0.60230009,64228.0,64227.0,0.078209]
[1724615894159,0.24147634,64228.0,64227.0,0.078209]
[1724615894368,0.60227634,64228.0,64227.0,0.078209]
[1724615896570,0.6500583,64228.0,64227.0,0.14049653]
[1724615896770,0.54107889,64228.0,64227.0,0.14049653]
[1724615901073,0.18027889,64228.0,64227.0,0.14049653]
[1724615901277,0.46323891,64228.0,64227.0,0.14048508]
[1724615901475,0.46323891,64228.0,64227.0,0.078209]
[1724615903181,0.46323891,64228.0,64227.0,0.14048488]
[1724615903974,0.46323891,64228.0,64227.0,0.078209]
[1724615904786,0.53140251,64228.0,64227.0,0.078209]
[1724615905577,0.17060251,64228.0,64227.0,0.078209]
[1724615905778,0.53140251,64228.0,64227.0,0.078209]
[1724615905975,0.46323891,64228.0,64227.0,0.078209]
[1724615906174,0.53140251,64228.0,64227.0,0.078209]
[1724615906575,0.67150814,64228.0,64227.0,0.078209]
[1724615907072,0.53140251,64228.0,64227.0,0.168209]
[1724615907680,0.31070814,64228.0,64227.0,0.168209]
[1724615907888,0.67150814,64228.0,64227.0,0.168209]
[1724615909587,0.31070814,64228.0,64227.0,0.168209]
[1724615909978,0.67150814,64228.0,64227.0,0.168209]
[1724615910278,0.57916533,64228.0,64227.0,0.078209]
[1724615910584,0.53140251,64228.0,64227.0,0.078209]
[1724615910781,0.17060251,64228.0,64227.0,0.078209]
[1724615910986,0.53140251,64228.0,64227.0,0.078209]
[1724615911681,0.46323891,64228.0,64227.0,0.078209]
[1724615914083,0.46323891,64228.0,64227.0,0.14048481]
[1724615914478,0.10243891,64228.0,64227.0,0.14048481]
[1724615914685,0.18027497,64228.0,64227.0,0.14048481]
[1724615914984,0.46323891,64228.0,64227.0,0.14048481]
[1724615915376,0.54107497,64228.0,64227.0,0.14048481]
[1724615916679,0.18027497,64228.0,64227.0,0.14048481]
[1724615916876,0.54107497,64228.0,64227.0,0.14048481]
[1724615918284,0.18027497,64228.0,64227.0,0.14048481]
[1724615918479,0.54107497,64228.0,64227.0,0.14048481]
[1724615919403,0.18027497,64228.0,64227.0,0.14048481]
[1724615919588,0.54107497,64228.0,64227.0,0.14048481]
[1724615919788,0.13249697,64228.0,64227.0,0.078209]
[1724615919985,0.49329697,64228.0,64227.0,0.078209]
[1724615920483,0.13249697,64228.0,64227.0,0.078209]
[1724615920683,0.49329697,64228.0,64227.0,0.078209]
[1724615920998,0.60226589,64228.0,64227.0,0.078209]
[1724615921691,0.24146589,64228.0,64227.0,0.078209]
[1724615922087,0.60226589,64228.0,64227.0,0.078209]
[1724615922488,0.49329697,64228.0,64227.0,0.078209]
[1724615923884,0.13249697,64228.0,64227.0,0.078209]
[1724615924084,0.49329697,64228.0,64227.0,0.078209]
[1724615924684,0.13249697,64228.0,64227.0,0.078209]
[1724615924883,0.49329697,64228.0,64227.0,0.078209]
[1724615925688,0.13249697,64228.0,64227.0,0.078209]
[1724615925996,0.49329697,64228.0,64227.0,0.078209]
[1724615926691,0.46323891,64228.0,64227.0,0.078209]
[1724615928596,0.10243891,64228.0,64227.0,0.078209]
[1724615928992,0.46323891,64228.0,64227.0,0.078209]
[1724615930396,0.10243891,64228.0,64227.0,0.078209]
[1724615930791,0.46323891,64228.0,64227.0,0.078209]
[1724615932290,0.54107221,64228.0,64227.0,0.14048429]
[1724615932492,0.18027221,64228.0,64227.0,0.14048429]
[1724615932691,0.54107221,64228.0,64227.0,0.14048429]
[1724615934407,0.18027221,64228.0,64227.0,0.14048429]
[1724615934601,0.54107221,64228.0,64227.0,0.14048429]
[1724615934802,0.18027221,64228.0,64227.0,0.14048429]
[1724615935103,0.54107221,64228.0,64227.0,0.14048429]
[1724615936703,0.18027221,64228.0,64227.0,0.14048429]
[1724615936893,0.54107221,64228.0,64227.0,0.14048429]
[1724615937707,0.18027221,64228.0,64227.0,0.14048429]
[1724615937998,0.54107221,64228.0,64227.0,0.14048429]
[1724615939007,0.46323891,64228.0,64227.0,0.078209]
[1724615940798,0.10243891,64228.0,64227.0,0.078209]
[1724615941109,0.46323891,64228.0,64227.0,0.078209]
[1724615941706,0.17060266,64228.0,64227.0,0.078209]
[1724615942225,0.53140266,64228.0,64227.0,0.078209]
[1724615944623,0.17060266,64228.0,64227.0,0.078209]
[1724615944819,0.53140266,64228.0,64227.0,0.078209]
[1724615945119,0.53140273,64228.0,64227.0,0.078209]
[1724615946024,0.17060273,64228.0,64227.0,0.078209]
[1724615946326,0.53140273,64228.0,64227.0,0.078209]
[1724615948720,0.17060273,64228.0,64227.0,0.078209]
[1724615948923,0.53140273,64228.0,64227.0,0.168209]
[1724615949828,0.46323891,64228.0,64227.0,0.078209]
[1724615950027,0.10243891,64228.0,64227.0,0.078209]
[1724615950224,0.46323891,64228.0,64227.0,0.078209]
[1724615950427,0.10243891,64228.0,64227.0,0.078209]
[1724615950634,0.46323891,64228.0,64227.0,0.078209]
[1724615952532,0.10243891,64228.0,64227.0,0.078209]
[1724615952735,0.46323891,64228.0,64227.0,0.078209]
[1724615957337,0.10243891,64228.0,64227.0,0.078209]
[1724615957534,0.46323891,64228.0,64227.0,0.078209]
[1724615960943,0.10243891,64228.0,64227.0,0.078209]
[1724615961135,0.46323891,64228.0,64227.0,0.088209]
[1724615961335,0.46323891,64228.0,64227.0,0.078209]
[1724615961642,0.46323891,64228.0,64227.0,0.088209]
[1724615962141,0.10243891,64228.0,64227.0,0.088209]
[1724615962441,0.46323891,64228.0,64227.0,0.088209]
[1724615963543,0.46323891,64228.0,64227.0,0.078209]
[1724615964736,0.49329651,64228.0,64227.0,0.078209]
[1724615965044,0.13249651,64228.0,64227.0,0.078209]
[1724615965238,0.49329651,64228.0,64227.0,0.078209]
[1724615965642,0.49329651,64228.0,64227.0,0.088209]
[1724615968542,0.3940576,64228.0,64227.0,0.088209]
[1724615971837,0.364,64228.0,64227.0,0.088209]
[1724615972243,0.0032,64228.0,64227.0,0.088209]
[1724615972440,0.364,64228.0,64227.0,0.088209]
[1724615973246,0.364,64228.0,64227.0,0.078209]
[1724615978053,0.0032,64228.0,64227.0,0.078209]
[1724615978352,0.364,64228.0,64227.0,0.078209]
[1724615978544,0.0032,64228.0,64227.0,0.078209]
[1724615978746,0.364,64228.0,64227.0,0.078209]
[1724615979954,0.39405746,64228.0,64227.0,0.078209]
[1724615980345,0.39405746,64228.0,64227.0,0.088209]
[1724615985748,0.39405749,64228.0,64227.0,0.088209]
[1724615986859,0.364,64228.0,64227.0,0.088209]
[1724615987752,0.531808,64228.0,64227.0,0.078209]
[1724615987954,0.531808,64228.0,64227.0,0.0004]
[1724615993658,0.171008,64228.0,64227.0,0.0004]
[1724615993853,0.531808,64228.0,64227.0,0.0004]
[1724615994454,0.60961363,64228.0,64227.0,0.06267312]
[1724615994857,0.56186639,64228.0,64227.0,0.0004]
[1724615995561,0.56186636,64228.0,64227.0,0.0004]
[1724615996056,0.20106636,64228.0,64227.0,0.0004]
[1724615996259,0.56186636,64228.0,64227.0,0.0004]
[1724615996648,0.20106636,64228.0,64227.0,0.0004]
[1724615996849,0.56186636,64228.0,64227.0,0.0004]
[1724615997466,0.077815,64222.0,64221.0,0.077816]
[1724615997759,0.528615,64222.0,64221.0,0.077816]
[1724615998556,0.55867401,64222.0,64221.0,0.077816]
[1724615999563,0.55867401,64222.0,64221.0,0.080816]
[1724616000060,0.19787401,64222.0,64221.0,0.080816]
[1724616000269,0.91947401,64222.0,64221.0,0.080816]
[1724616000661,0.91947401,64222.0,64221.0,0.084816]
[1724616000959,0.91947607,64222.0,64221.0,0.084816]
[1724616001461,0.91947607,64222.0,64221.0,0.174816]
[1724616001462,0.82947607,64222.0,64221.0,0.174816]
[1724616001863,0.799415,64222.0,64221.0,0.174816]
[1724616002657,0.799415,64222.0,64221.0,0.194816]
[1724616003366,0.7216,64222.0,64221.0,0.194816]
[1724616005272,0.7216,64222.0,64221.0,0.27266245]
[1724616006064,0.0214296,64223.0,64222.0,0.077815]
[1724616006369,0.077812,64226.0,64225.0,0.077812]
[1724616006666,0.077812,64226.0,64225.0,0.2300464]
[1724616007154,0.077812,64226.0,64225.0,0.2304464]